bitfinex/quotes_ETHUSD_20250414
["timestamp","ask_amount","ask_price","bid_price","bid_amount"]
[1744622185822,10.96174128,1642.3,1641.9,5.63492]
[1744622185823,15.83315128,1642.3,1641.9,5.63492]
[1744622186029,12.54505641,1642.3,1641.9,5.63492]
[1744622186328,7.67381641,1642.3,1642.0,5.21030396]
[1744622186525,12.54504641,1642.3,1642.0,0.33821396]
[1744622187325,12.54504641,1642.3,1641.9,10.50735]
[1744622187525,7.67381641,1642.3,1642.0,4.87198]
[1744622187827,7.96244128,1642.1,1641.8,4.8726]
[1744622187997,3.09050128,1642.1,1641.9,4.87223]
[1744622188530,3.09050128,1642.1,1641.9,9.74449]
[1744622188730,3.09050128,1642.1,1641.9,4.87223]
[1744622190224,3.09050128,1642.1,1641.7,5.68054]
[1744622190429,7.96246128,1642.1,1641.7,5.68054]
[1744622190598,12.83456128,1642.1,1641.7,6.735922]
[1744622190800,4.8727,1641.8,1641.5,4.87356]
[1744622191022,3.09050128,1641.7,1641.4,7.3650274]
[1744622191199,8.73385128,1641.7,1641.4,2.4911874]
[1744622191601,4.87339,1641.6,1641.4,2.4911874]
[1744622192599,11.51409128,1641.5,1641.4,2.4911874]
[1744622192794,12.30199128,1641.5,1641.4,2.4911874]
[1744622194328,6.25088,1641.2,1641.1,0.05]
[1744622194526,9.34138128,1641.2,1641.1,0.05]
[1744622194727,12.34138128,1641.2,1641.1,0.05]
[1744622195037,8.63846441,1641.2,1641.1,0.05]
[1744622195198,6.91690128,1641.2,1641.1,0.05]
[1744622195401,7.46690128,1641.2,1641.1,0.05]
[1744622195610,12.34138128,1641.2,1641.1,0.05]
[1744622196427,7.46690128,1641.2,1641.1,0.05]
[1744622197915,12.34138128,1641.2,1641.1,0.05]
[1744622198115,7.46690128,1641.2,1641.1,0.05]
[1744622198734,6.64050128,1641.2,1641.1,0.05]
[1744622200122,12.66646741,1641.2,1641.1,0.05]
[1744622200636,6.09050128,1641.2,1641.1,0.05]
[1744622200804,6.64050128,1641.2,1641.1,0.05]
[1744622201009,11.51498128,1641.2,1641.1,0.05]
[1744622201619,12.31018128,1641.2,1641.1,0.05]
[1744622202804,7.43570128,1641.2,1641.1,0.05]
[1744622203811,6.64050128,1641.2,1641.1,0.05]
[1744622204113,11.51498128,1641.2,1641.1,0.05]
[1744622204318,6.64050128,1641.2,1641.1,0.05]
[1744622205353,13.90431241,1641.2,1641.1,0.05]
[1744622205651,20.12631241,1641.2,1641.1,0.05]
[1744622207146,29.38681369,1641.2,1641.1,0.05]
[1744622207348,0.55,1640.7,1640.4,4.87662]
[1744622207516,3.09050128,1640.6,1640.4,4.87662]
[1744622207716,9.11852041,1640.6,1640.2,5.65017]
[1744622208141,13.99500041,1640.6,1640.2,5.65017]
[1744622208476,9.11852041,1640.6,1640.2,5.65017]
[1744622208652,3.09050128,1640.4,1640.2,0.773]
[1744622208944,3.09050128,1640.4,1640.1,4.92773]
[1744622209317,3.09050128,1640.4,1640.1,9.80534]
[1744622209518,3.09050128,1640.4,1640.2,4.87738]
[1744622209919,3.54420362,1640.4,1640.2,4.87738]
[1744622210718,6.02794913,1640.6,1640.2,4.87738]
[1744622210719,6.64050128,1640.6,1640.5,4.87656]
[1744622211053,6.09050128,1640.6,1640.5,4.87656]
[1744622211358,6.09050128,1640.6,1640.3,5.66954]
[1744622211656,6.09050128,1640.6,1640.3,0.7924]
[1744622211967,6.09050128,1640.6,1640.5,4.87656]
[1744622213533,9.26050128,1640.8,1640.7,4.87596]
[1744622213686,12.26050128,1640.8,1640.7,4.87596]
[1744622213982,6.17,1640.8,1640.7,4.87596]
[1744622215170,6.17,1640.8,1640.5,9.75293]
[1744622215580,6.17,1640.8,1640.6,4.8762]
[1744622216484,6.17,1640.8,1640.6,9.75232]
[1744622216684,6.17,1640.8,1640.7,5.66586]
[1744622217351,3.46206364,1641.0,1640.7,5.66586]
[1744622217543,0.55,1640.9,1640.7,4.87596]
[1744622220325,0.55,1640.9,1640.6,4.87623]
[1744622220499,0.55,1640.9,1640.6,9.75233]
[1744622220703,0.55,1640.9,1640.7,4.8758]
[1744622221030,3.4628518,1641.0,1640.8,4.87567]
[1744622221819,3.4628518,1641.0,1640.7,4.8758]
[1744622222022,3.4628518,1641.0,1640.7,9.75163]
[1744622222324,9.6269644,1641.0,1640.6,4.87623]
[1744622222523,8.6281942,1640.9,1640.5,5.69767]
[1744622222721,8.6288342,1640.7,1640.3,16.77714]
[1744622222879,3.7526942,1640.7,1640.4,4.87669]
[1744622223228,9.87419762,1640.7,1640.4,4.87669]
[1744622223384,9.87419762,1640.7,1640.3,5.67703]
[1744622223820,9.87419762,1640.7,1640.3,10.55405]
[1744622223997,9.17,1640.8,1640.6,4.87608]
[1744622224321,6.17,1640.8,1640.7,4.87596]
[1744622224621,9.3726942,1640.9,1640.7,4.87596]
[1744622224822,3.55,1640.8,1640.4,4.87671]
[1744622225022,9.36306942,1640.8,1640.4,4.87671]
[1744622225229,14.23890942,1640.8,1640.4,4.87671]
[1744622225447,3.55,1640.8,1640.3,5.67709]
[1744622225597,3.55,1640.8,1640.5,9.75274]
[1744622225792,8.42579,1640.8,1640.4,4.87675]
[1744622225981,3.55,1640.8,1640.5,4.87637]
[1744622226811,8.42573,1640.8,1640.5,4.87637]
[1744622227024,5.81739642,1640.8,1640.5,4.87637]
[1744622227230,5.81739642,1640.8,1640.5,9.75276]
[1744622227439,5.81739642,1640.8,1640.5,4.87637]
[1744622227605,10.69320642,1640.8,1640.4,4.87681]
[1744622227794,15.56908642,1640.8,1640.4,4.87681]
[1744622227997,1.55690864,1640.7,1640.4,4.87671]
[1744622228333,5.81739642,1640.8,1640.5,4.87643]
[1744622228514,10.69306642,1640.8,1640.4,4.87681]
[1744622229031,5.81739642,1640.8,1640.4,4.87674]
[1744622229231,5.81739642,1640.8,1640.5,4.87639]
[1744622229404,10.69314642,1640.8,1640.5,4.87639]
[1744622229600,15.56902642,1640.8,1640.4,4.87685]
[1744622229815,1.55690264,1640.7,1640.4,4.87685]
[1744622230020,1.55690264,1640.7,1640.4,9.75354]
[1744622230197,3.55,1640.8,1640.5,9.75292]
[1744622230399,3.55,1640.8,1640.5,4.87645]
[1744622230625,8.4257,1640.8,1640.5,4.87645]
[1744622231247,8.4257,1640.8,1640.4,9.75346]
[1744622231537,8.4257,1640.8,1640.5,4.87654]
[1744622231737,10.69308142,1640.8,1640.5,4.87654]
[1744622232431,5.81738142,1640.8,1640.5,9.75298]
[1744622232623,5.81738142,1640.8,1640.5,4.87644]
[1744622233131,5.81738142,1640.8,1640.5,9.75289]
[1744622233427,5.81738142,1640.8,1640.5,4.87644]
[1744622233608,5.81738142,1640.8,1640.5,9.75285]
[1744622233804,5.81738142,1640.8,1640.5,4.87641]
[1744622234004,3.0,1640.8,1640.6,4.87615]
[1744622234735,3.0,1640.8,1640.5,4.87641]
[1744622234934,3.0,1640.8,1640.6,4.87625]
[1744622236139,0.8078,1641.2,1640.6,0.81555238]
[1744622236437,7.444345,1641.4,1641.1,9.74954]
[1744622236639,7.444345,1641.4,1641.1,4.87477]
[1744622237338,7.444345,1641.4,1640.9,4.87527]
[1744622237339,7.9707515,1641.3,1640.9,4.87527]
[1744622237507,3.0965615,1641.3,1641.2,4.87448]
[1744622237713,7.444345,1641.4,1641.2,4.87448]
[1744622239140,7.444345,1641.4,1641.3,4.87418]
[1744622239141,6.17,1641.4,1641.3,4.87418]
[1744622240843,3.0965615,1641.6,1641.3,4.87418]
[1744622241545,3.0965615,1641.6,1641.3,4.874]
[1744622241843,7.9698515,1641.6,1641.2,5.926957]
[1744622242409,7.9698515,1641.6,1641.2,5.926797]
[1744622242737,8.43569794,1641.6,1641.2,5.926797]
[1744622243843,8.43569794,1641.6,1641.3,4.87412]
[1744622244043,5.42372,1641.5,1641.1,5.65051]
[1744622244243,0.55,1641.5,1641.2,4.87444]
[1744622244542,3.56240794,1641.6,1641.3,4.87417]
[1744622245244,3.0965615,1641.8,1641.6,4.87329]
[1744622245446,0.7733,1641.9,1641.6,4.87329]
[1744622245610,14.1387815,1642.0,1641.9,4.8724]
[1744622245611,6.17,1642.0,1641.9,4.8724]
[1744622247048,6.17,1642.0,1641.7,4.87299]
[1744622247212,11.82711,1642.0,1641.6,10.53198]
[1744622247552,11.82711,1642.0,1641.6,5.65872]
[1744622247713,6.955,1642.0,1641.7,4.87289]
[1744622248916,11.82713,1642.0,1641.7,4.87289]
[1744622250032,11.82713,1642.0,1641.6,5.65872]
[1744622250231,11.82713,1642.0,1641.6,10.53183]
[1744622251920,11.82713,1642.0,1641.6,5.65871]
[1744622252653,7.9689715,1641.9,1641.6,5.65871]
[1744622252953,7.9689715,1641.9,1641.4,4.87388]
[1744622252954,3.8793615,1641.7,1641.4,4.87388]
[1744622253141,8.7524715,1641.7,1641.3,5.70166]
[1744622253723,13.6256515,1641.7,1641.3,5.70166]
[1744622254223,3.8793615,1641.7,1641.4,4.87374]
[1744622254638,4.80956965,1641.7,1641.4,4.87374]
[1744622254839,4.80956965,1641.7,1641.4,9.74749]
[1744622255254,0.55,1641.6,1641.4,4.87374]
[1744622255452,0.55,1641.6,1641.3,5.70165]
[1744622255655,0.55,1641.6,1641.2,4.87442]
[1744622255656,5.4233,1641.6,1641.2,4.87442]
[1744622255953,3.0965615,1641.5,1641.2,4.87442]
[1744622256143,3.0965615,1641.5,1641.2,4.87432]
[1744622256555,1.5965615,1641.5,1641.2,4.87432]
[1744622257863,3.7704,1641.4,1641.1,5.63387]
[1744622258068,3.7704,1641.4,1641.1,9.74942]
[1744622258272,3.7704,1641.4,1641.1,5.924672]
[1744622258584,3.0965615,1641.3,1641.0,4.87503]
[1744622258926,3.7704,1641.4,1640.8,11.85933]
[1744622259130,3.7704,1641.4,1641.1,4.87467]
[1744622259131,3.0,1641.4,1641.1,4.87467]
[1744622259372,3.0,1641.4,1641.2,4.87436]
[1744622259572,3.0,1641.4,1641.1,9.74934]
[1744622259758,3.0,1641.4,1641.1,9.7493]
[1744622260069,3.0,1641.4,1641.2,4.87446]
[1744622261265,0.55,1641.3,1641.1,4.87463]
[1744622261437,1.3769,1641.3,1641.0,4.87505]
[1744622261873,6.25108,1641.3,1641.0,4.87505]
[1744622262174,1.3769,1641.3,1641.1,4.87467]
[1744622262862,1.3769,1641.3,1641.0,4.87495]
[1744622263341,1.3769,1641.3,1641.0,5.930702]
[1744622263861,6.25108,1641.3,1641.0,5.930702]
[1744622264062,6.25108,1641.3,1640.9,5.68243]
[1744622264263,7.9710715,1641.2,1640.9,4.87523]
[1744622264440,3.0,1641.1,1640.8,4.87565]
[1744622264640,3.0,1641.1,1640.8,6.54966]
[1744622265042,3.0,1641.1,1640.8,6.54957]
[1744622265277,3.0,1641.1,1640.8,4.87556]
[1744622265779,3.0,1641.1,1640.9,4.87536]
[1744622266086,3.0,1641.1,1640.9,9.75056]
[1744622266293,3.0,1641.1,1640.9,9.75042]
[1744622266884,3.0,1641.1,1640.9,4.8752]
[1744622267088,0.7775,1641.0,1640.8,4.87557]
[1744622267377,3.0,1641.1,1640.9,0.487557]
[1744622267676,3.0,1641.1,1640.9,5.362897]
[1744622268556,3.0,1641.1,1640.9,10.238137]
[1744622269078,3.0,1641.1,1641.0,4.87507]
[1744622269375,3.0,1641.1,1641.0,5.8988567]
[1744622270459,3.0,1641.1,1641.0,1.0237867]
[1744622270661,3.0,1641.1,1640.9,5.362797]
[1744622272192,3.7925,1641.1,1640.8,4.87562]
[1744622272581,3.7925,1641.1,1640.8,9.75112]
[1744622272782,3.7925,1641.1,1640.8,4.8755]
[1744622273355,8.66745,1641.1,1640.7,5.70343]
[1744622273692,4.87538,1640.9,1640.6,7.36842336]
[1744622273997,3.0965615,1640.8,1640.5,4.87653]
[1744622274171,7.9722415,1640.8,1640.5,4.87653]
[1744622274372,12.8481715,1640.8,1640.4,4.87684]
[1744622274783,4.87596,1640.7,1640.4,4.87684]
[1744622275059,5.34419032,1640.7,1640.4,6.549155]
[1744622275559,0.8313,1640.7,1640.5,4.87636]
[1744622275769,0.55,1640.6,1640.4,4.87683]
[1744622275952,0.55,1640.6,1640.3,11.03913]
[1744622276156,0.55,1640.6,1640.3,15.91612]
[1744622276882,3.8313,1640.7,1640.4,5.67868]
[1744622277104,3.8313,1640.7,1640.4,6.862748]
[1744622277268,3.8313,1640.7,1640.5,4.87646]
[1744622277677,3.8313,1640.7,1640.4,6.862748]
[1744622277974,4.28409104,1640.7,1640.4,6.060648]
[1744622278496,9.16009104,1640.7,1640.4,4.87658]
[1744622278702,14.03627104,1640.7,1640.3,11.8412]
[1744622278896,4.28409104,1640.7,1640.4,4.87667]
[1744622280528,0.55,1640.6,1640.2,4.87744]
[1744622280819,1.3005,1640.2,1640.1,0.05]
[1744622280974,4.3970615,1640.2,1640.1,0.05]
[1744622281922,7.3970615,1640.2,1640.1,0.05]
[1744622282122,18.5155115,1640.2,1640.1,0.05]
[1744622282286,18.97817264,1640.2,1640.1,0.05]
[1744622282493,21.3637179,1640.2,1640.1,0.05]
[1744622283820,1.3188,1639.6,1639.4,0.55]
[1744622283990,0.55,1639.6,1639.5,4.87953]
[1744622284193,0.55,1639.6,1639.4,5.4297]
[1744622284419,0.55,1639.6,1639.4,5.42964]
[1744622284919,4.4151615,1639.5,1639.4,0.55]
[1744622285802,7.4151615,1639.5,1639.4,0.55]
[1744622287689,7.87953626,1639.5,1639.4,0.55]
[1744622288821,12.75906626,1639.5,1639.4,0.55]
[1744622289022,18.92906626,1639.5,1639.4,0.55]
[1744622289223,21.3408645,1639.5,1639.4,0.55]
[1744622290092,9.63437476,1639.5,1639.4,0.55]
[1744622290297,9.17,1639.5,1639.4,5.42983]
[1744622290496,9.17,1639.5,1639.4,0.55]
[1744622290693,17.1460915,1639.5,1639.4,0.55]
[1744622290995,20.20450065,1639.5,1639.4,0.55]
[1744622291920,13.6103615,1639.5,1639.4,0.55]
[1744622292127,0.7696,1639.7,1639.6,4.87923]
[1744622292332,9.71795059,1639.8,1639.4,0.55]
[1744622292529,9.71795059,1639.8,1639.6,4.87922]
[1744622293395,6.17,1639.8,1639.6,5.64606]
[1744622293599,3.9147615,1640.2,1639.7,5.443396]
[1744622293814,3.9147615,1640.2,1639.9,4.87812]
[1744622293815,3.0965615,1640.2,1639.9,4.87812]
[1744622294186,3.0965615,1640.2,1639.8,5.64564]
[1744622294187,0.8056,1640.1,1639.8,4.87848]
[1744622294414,3.55087694,1640.2,1639.9,4.87816]
[1744622294612,0.55,1640.1,1639.9,4.87816]
[1744622294926,3.55087694,1640.2,1639.9,4.87816]
[1744622295127,3.0965615,1640.2,1640.0,4.87804]
[1744622295308,3.0965615,1640.2,1640.0,4.87794]
[1744622295811,3.0965615,1640.2,1640.1,4.87775]
[1744622296136,3.0965615,1640.2,1640.0,4.87788]
[1744622296427,3.0965615,1640.2,1639.9,6.156616]
[1744622296601,3.0965615,1640.2,1640.0,5.4936016]
[1744622296804,6.17,1640.3,1640.2,5.66425]
[1744622297531,3.0965615,1640.5,1640.4,4.87685]
[1744622297937,6.0965615,1640.5,1640.3,4.87704]
[1744622298234,6.0965615,1640.5,1640.2,0.7868]
[1744622298437,3.0965615,1640.5,1640.2,4.87739]
[1744622298808,6.0965615,1640.5,1640.2,9.75468]
[1744622299332,6.0965615,1640.5,1640.3,5.67484]
[1744622299638,6.17669,1640.8,1640.4,4.87661]
[1744622299639,3.0,1640.6,1640.4,4.87661]
[1744622300118,3.6465615,1640.5,1640.2,4.87743]
[1744622300518,3.6465615,1640.5,1640.2,9.75471]
[1744622300829,3.0965615,1640.5,1640.3,9.75405]
[1744622301030,3.0,1640.6,1640.4,4.87678]
[1744622301031,6.0965615,1640.6,1640.4,4.87678]
[1744622301597,6.0965615,1640.6,1640.3,4.877]
[1744622301911,10.9728315,1640.6,1640.3,4.877]
[1744622302316,6.0965615,1640.6,1640.3,4.877]
[1744622302521,3.0965615,1640.6,1640.5,4.87656]
[1744622303319,3.0965615,1640.6,1640.4,5.63968]
[1744622303665,3.0965615,1640.6,1640.3,9.75414]
[1744622304244,3.0965615,1640.6,1640.3,4.87699]
[1744622305848,7.9728715,1640.6,1640.3,4.87699]
[1744622306143,3.0965615,1640.4,1640.0,1.3889616]
[1744622306311,3.0965615,1640.4,1640.3,4.87715]
[1744622306512,3.0965615,1640.6,1640.3,5.70002]
[1744622306711,3.0965615,1640.6,1640.3,10.57706]
[1744622307045,3.0965615,1640.6,1640.4,4.87682]
[1744622307927,3.0965615,1640.6,1640.3,10.57706]
[1744622308659,3.0965615,1640.6,1640.3,5.70002]
[1744622308855,4.07275723,1640.6,1640.3,5.70002]
[1744622309359,4.07275723,1640.6,1640.3,10.577]
[1744622309648,3.0,1640.5,1640.3,10.577]
[1744622309952,3.0965615,1640.6,1640.4,9.7537]
[1744622310457,3.0,1640.6,1640.5,4.87656]
[1744622310820,3.0,1640.6,1640.3,10.57722]
[1744622311024,3.0,1640.6,1640.4,4.87685]
[1744622311226,3.0,1640.6,1640.4,9.75356]
[1744622312458,10.0876615,1640.9,1640.7,4.87594]
[1744622312624,9.2665615,1640.9,1640.7,4.87594]
[1744622312821,3.0,1640.8,1640.7,4.87581]
[1744622313359,3.0,1640.8,1640.5,4.87652]
[1744622313531,3.7615,1640.8,1640.5,9.75291]
[1744622313862,3.7615,1640.8,1640.5,4.87639]
[1744622314661,3.0965615,1640.7,1640.4,5.70545]
[1744622314867,3.0965615,1640.7,1640.4,5.70533]
[1744622315160,6.50409189,1640.8,1640.5,9.75278]
[1744622316164,11.37979189,1640.8,1640.5,4.87637]
[1744622316371,3.46469074,1640.8,1640.6,4.87623]
[1744622317061,3.46469074,1640.8,1640.5,4.87637]
[1744622317775,3.0,1640.8,1640.6,4.87611]
[1744622318071,3.0,1640.8,1640.5,4.87656]
[1744622318276,3.0,1640.8,1640.5,4.87646]
[1744622320272,3.0,1640.8,1640.5,4.8764]
[1744622320440,3.0,1640.8,1640.5,9.75283]
[1744622320640,3.0,1640.8,1640.6,4.87626]
[1744622321041,3.0,1640.8,1640.6,9.75236]
[1744622321460,3.0,1640.8,1640.6,4.87609]
[1744622321652,6.17,1640.9,1640.8,0.8009]
[1744622321864,3.0965615,1641.1,1640.8,5.67657]
[1744622322852,3.0965615,1641.1,1640.9,4.87526]
[1744622323053,3.0965615,1641.1,1640.8,5.67657]
[1744622323963,7.9713515,1641.1,1640.8,4.87567]
[1744622324140,7.9720215,1640.9,1640.6,5.64251]
[1744622324662,8.7481215,1640.9,1640.6,4.87621]
[1744622324858,3.8726615,1640.9,1640.6,9.75232]
[1744622325063,3.8726615,1640.9,1640.7,4.87596]
[1744622325375,3.8726615,1640.9,1640.6,9.75227]
[1744622325576,3.8726615,1640.9,1640.6,4.87611]
[1744622325873,8.7481715,1640.9,1640.5,10.51388]
[1744622326273,3.8726615,1640.9,1640.6,4.87619]
[1744622326478,3.8726615,1640.9,1640.6,9.75234]
[1744622326677,3.8726615,1640.9,1640.6,4.87615]
[1744622327561,4.87569,1640.8,1640.5,5.63735]
[1744622327764,8.7481115,1640.9,1640.5,10.5139]
[1744622328063,6.0965615,1640.9,1640.8,4.87567]
[1744622328268,0.46815303,1641.0,1640.8,4.87567]
[1744622328443,3.0,1641.0,1640.8,4.87567]
[1744622328793,3.0,1641.0,1640.7,4.87589]
[1744622329584,3.0965615,1640.9,1640.6,9.7524]
[1744622329946,3.0965615,1640.9,1640.7,5.21601587]
[1744622330147,3.0965615,1640.9,1640.7,0.34009587]
[1744622330978,3.0965615,1640.9,1640.6,9.75221]
[1744622331152,3.0965615,1640.9,1640.7,5.851121]
[1744622331355,3.0965615,1640.9,1640.7,4.8759]
[1744622331559,3.0965615,1640.9,1640.8,4.87567]
[1744622331859,3.0965615,1640.9,1640.7,4.87581]
[1744622332084,3.0965615,1640.9,1640.7,9.75164]
[1744622332566,3.0965615,1640.9,1640.7,9.75167]
[1744622334282,3.0965615,1640.9,1640.7,4.87581]
[1744622335050,9.11413896,1640.9,1640.6,4.87623]
[1744622335382,3.8106,1640.8,1640.5,0.7608]
[1744622335555,3.8106,1640.8,1640.6,4.87612]
[1744622335556,3.0,1640.8,1640.6,4.87612]
[1744622335761,3.0,1640.8,1640.6,5.21635655]
[1744622336955,3.0,1640.8,1640.6,4.87612]
[1744622338777,3.0,1640.8,1640.5,5.63732]
[1744622338977,3.0,1640.8,1640.5,10.51376]
[1744622339288,3.0,1640.8,1640.5,5.63724]
[1744622339687,3.0,1640.8,1640.6,5.21679718]
[1744622340385,4.25981315,1641.0,1640.7,4.87572]
[1744622340595,9.13489315,1641.0,1640.7,5.21627718]
[1744622340896,12.8475815,1640.9,1640.7,0.34055718]
[1744622342066,4.87596,1640.7,1640.6,0.34055718]
[1744622342263,13.3200965,1640.7,1640.6,0.34055718]
[1744622342459,18.7226965,1640.7,1640.6,0.34055718]
[1744622342772,19.4900965,1640.7,1640.6,0.34055718]
[1744622343092,9.20505,1640.3,1640.2,0.34055718]
[1744622343464,18.4716115,1640.3,1640.2,0.34055718]
[1744622343763,21.1161228,1640.3,1640.2,0.34055718]
[1744622343985,21.1161228,1640.3,1639.7,0.34055718]
[1744622343986,0.8291,1639.9,1639.7,0.34055718]
[1744622344164,8.42864,1639.8,1639.7,0.34055718]
[1744622344497,3.55,1639.8,1639.7,0.34055718]
[1744622344870,8.42864,1639.8,1639.4,5.6868]
[1744622345073,8.42864,1639.8,1639.5,4.87942]
[1744622345074,3.55,1639.8,1639.5,4.87942]
[1744622345260,3.55,1639.8,1639.5,9.75884]
[1744622345460,3.55,1639.8,1639.6,4.87911]
[1744622345657,3.55,1639.8,1639.5,4.87942]
[1744622345862,3.55,1639.8,1639.5,9.75879]
[1744622346192,3.55,1639.8,1639.6,4.87916]
[1744622346565,3.0,1639.8,1639.5,0.06099022]
[1744622346893,3.0,1639.8,1639.6,4.87911]
[1744622347395,3.0,1639.8,1639.6,4.87908]
[1744622347602,0.55,1640.0,1639.7,4.8788]
[1744622347805,3.55,1640.0,1639.7,4.8788]
[1744622348300,3.55,1640.0,1639.8,4.87863]
[1744622348474,3.0,1640.0,1639.8,5.64897]
[1744622348679,3.0965615,1640.1,1639.9,4.87834]
[1744622348898,3.0965615,1640.1,1639.8,0.7705]
[1744622349104,7.9744715,1640.1,1639.8,4.8786]
[1744622349404,3.0965615,1640.1,1639.8,4.8786]
[1744622349771,3.0965615,1640.1,1639.7,9.75755]
[1744622350095,3.0965615,1640.1,1639.8,4.87846]
[1744622350905,3.0965615,1640.1,1639.9,9.7566]
[1744622351068,3.0965615,1640.1,1639.9,4.8783]
[1744622351602,3.0,1640.0,1639.8,4.87862]
[1744622352496,3.0,1640.0,1639.8,4.87853]
[1744622352696,3.0,1640.0,1639.9,4.87834]
[1744622352897,3.0,1640.0,1639.9,5.71094]
[1744622356872,0.31813566,1640.1,1640.0,4.87804]
[1744622357076,0.31813566,1640.1,1640.0,4.93900984]
[1744622357277,0.31813566,1640.1,1640.0,4.87804]
[1744622357578,0.31813566,1640.1,1640.0,5.99790376]
[1744622357802,0.31813566,1640.1,1640.0,6.77810376]
[1744622358389,0.31813566,1640.1,1640.0,6.717138]
[1744622359213,0.31813566,1640.1,1640.0,7.05614031]
[1744622360112,0.31813566,1640.1,1640.0,13.22214031]
[1744622360917,6.61922933,1640.6,1640.3,4.87696]
[1744622361082,8.51360941,1640.6,1640.3,4.87696]
[1744622362114,8.51360941,1640.6,1640.3,9.75401]
[1744622362895,8.51360941,1640.6,1640.4,4.87685]
[1744622364430,8.51360941,1640.6,1640.3,4.87696]
[1744622364588,3.0,1640.3,1640.0,11.82414]
[1744622364913,0.7835,1640.4,1640.2,4.87735]
[1744622365123,2.01417015,1640.4,1640.1,4.87775]
[1744622365308,2.01417015,1640.4,1640.1,9.7555]
[1744622365497,2.01417015,1640.4,1640.2,4.87745]
[1744622366077,2.01417015,1640.4,1640.1,9.7555]
[1744622366314,2.01417015,1640.4,1640.1,4.87775]
[1744622366629,3.0,1640.3,1640.1,4.87775]
[1744622367211,3.0,1640.3,1640.1,4.87759]
[1744622367588,3.0,1640.3,1640.0,11.82424]
[1744622367790,3.0,1640.3,1640.0,16.70228]
[1744622368125,3.98910402,1640.3,1640.0,9.75608]
[1744622368623,3.98910402,1640.3,1640.1,0.33974555]
[1744622368830,4.87745,1640.2,1640.1,0.33974555]
[1744622368982,3.0,1640.1,1639.8,4.87855]
[1744622369181,3.0,1640.1,1639.8,4.8785]
[1744622369484,6.25145,1640.2,1640.0,4.8779]
[1744622369485,4.374,1640.2,1640.0,4.8779]
[1744622369705,3.0,1640.2,1640.0,5.7089]
[1744622369917,3.0,1640.2,1640.1,4.87775]
[1744622370405,3.0,1640.2,1640.0,5.7089]
[1744622371153,3.0965615,1640.3,1640.1,4.87774]
[1744622374720,3.0,1640.3,1640.1,4.87761]
[1744622374906,3.0,1640.3,1640.2,4.87745]
[1744622375347,7.37302933,1640.6,1640.3,4.87715]
[1744622375748,3.0,1640.5,1640.4,4.87684]
[1744622376048,3.0,1640.5,1640.3,5.63495]
[1744622377044,3.3180557,1640.5,1640.3,5.63481]
[1744622377244,3.3180557,1640.5,1640.3,4.87701]
[1744622377761,3.3180557,1640.5,1640.3,9.754]
[1744622378256,3.3180557,1640.5,1640.4,4.87685]
[1744622378645,3.0,1640.5,1640.4,4.87685]
[1744622379046,3.0,1640.5,1640.3,4.87699]
[1744622379957,3.0,1640.5,1640.3,9.75402]
[1744622380864,7.37302933,1640.6,1640.3,10.81072815]
[1744622381432,7.37302933,1640.6,1640.4,4.87676]
[1744622381759,3.9218615,1640.7,1640.5,4.87656]
[1744622381956,3.0,1640.8,1640.6,4.87605]
[1744622382124,6.17,1640.9,1640.8,4.87567]
[1744622382320,0.8141,1641.0,1640.8,4.87567]
[1744622382321,6.9841,1641.0,1640.8,4.87567]
[1744622382726,7.44027557,1641.0,1640.8,4.87567]
[1744622382950,7.44027557,1641.0,1640.7,5.363445]
[1744622383459,7.44027557,1641.0,1640.7,10.239265]
[1744622384338,7.44027557,1641.0,1640.7,5.363425]
[1744622384856,7.44027557,1641.0,1640.7,10.239265]
[1744622385160,7.44027557,1641.0,1640.7,5.363425]
[1744622385527,7.44027557,1641.0,1640.7,10.239285]
[1744622386357,7.44027557,1641.0,1640.7,5.363425]
[1744622386760,7.44027557,1641.0,1640.7,10.239265]
[1744622387072,7.44027557,1641.0,1640.7,5.363415]
[1744622387357,7.44027557,1641.0,1640.8,4.87563]
[1744622387767,7.44027557,1641.0,1640.7,10.239275]
[1744622387940,7.44027557,1641.0,1640.7,5.363415]
[1744622388239,7.44027557,1641.0,1640.7,4.87581]
[1744622388441,3.0965615,1640.9,1640.6,4.87624]
[1744622389265,3.8685615,1640.7,1640.3,5.69078]
[1744622389430,3.8685615,1640.7,1640.4,4.87685]
[1744622389754,0.772,1640.7,1640.4,4.87685]
[1744622389957,3.8685615,1640.7,1640.4,4.87685]
[1744622390365,3.8685615,1640.7,1640.4,9.7536]
[1744622390531,3.8685615,1640.7,1640.4,4.87675]
[1744622391133,8.7445515,1640.7,1640.3,5.6909]
[1744622391328,8.7445515,1640.7,1640.1,4.87771]
[1744622391329,7.87627,1640.6,1640.2,5.69605]
[1744622391767,12.75273,1640.6,1640.3,0.33923907]
[1744622392435,4.8766,1640.5,1640.3,0.33923907]
[1744622392638,4.8766,1640.5,1640.2,5.69605]
[1744622393078,7.9731615,1640.5,1640.2,5.69605]
[1744622394470,7.9731615,1640.5,1640.3,0.33924577]
[1744622395175,7.9731615,1640.5,1640.2,5.69605]
[1744622396766,7.9731615,1640.5,1640.3,0.33931331]
[1744622397267,7.9731615,1640.5,1640.2,5.69605]
[1744622398270,7.9731615,1640.5,1640.2,10.57336]
[1744622398271,3.0965615,1640.5,1640.2,10.57336]
[1744622398484,0.772,1640.7,1640.3,0.06096143]
[1744622398647,0.772,1640.7,1640.4,4.87664]
[1744622398848,10.52416,1640.7,1640.3,4.8771]
[1744622399475,5.64802,1640.7,1640.4,0.33923395]
[1744622400177,5.64802,1640.7,1640.3,9.7541]
[1744622400376,5.64802,1640.7,1640.4,4.87674]
[1744622400567,5.64802,1640.7,1640.5,5.69633]